bitfinex/quotes_ETHUSD_20250222
["timestamp","ask_amount","ask_price","bid_price","bid_amount"]
[1740254923220,3.61348,2767.5,2767.0,3.61399]
[1740254923959,3.61318,2767.7,2767.1,4.30481]
[1740254924124,1.572768,2767.8,2767.2,3.61367]
[1740254924337,2.6153318,2767.8,2767.3,3.61362]
[1740254924542,1.8492638,2767.8,2767.1,0.691]
[1740254924773,5.4623238,2767.8,2767.1,4.30477]
[1740254924971,3.61312,2767.7,2767.1,4.30477]
[1740254925123,0.8067,2768.0,2767.5,3.61336]
[1740254925470,3.61271,2768.1,2767.6,0.691]
[1740254926135,4.41917,2768.2,2767.6,0.691]
[1740254926343,3.61275,2768.0,2767.6,0.691]
[1740254926531,3.61262,2768.1,2767.6,0.691]
[1740254927167,3.87247,2769.0,2767.6,0.691]
[1740254927168,3.61201,2768.6,2767.9,3.61281]
[1740254927475,3.6118,2768.7,2768.1,3.61256]
[1740254927674,3.6118,2768.7,2768.0,0.691]
[1740254927831,3.6118,2768.7,2768.0,4.30371]
[1740254928032,4.334155,2768.7,2768.0,4.30371]
[1740254928346,3.61198,2768.6,2768.0,0.691]
[1740254928730,3.61214,2768.5,2768.0,0.691]
[1740254929043,4.334175,2768.7,2768.1,3.61257]
[1740254929366,3.61155,2768.9,2768.2,0.691]
[1740254929570,3.61152,2769.0,2768.4,0.691]
[1740254929865,3.61129,2769.1,2768.4,0.691]
[1740254930032,1.76465566,2769.2,2768.4,0.691]
[1740254930231,3.6114,2769.1,2768.5,3.61194]
[1740254930461,3.61144,2769.0,2768.5,3.61194]
[1740254930838,3.61122,2769.2,2768.6,3.61191]
[1740254931230,4.39728,2769.3,2768.5,3.61194]
[1740254931425,3.61116,2769.2,2768.5,3.61194]
[1740254932376,3.61095,2769.4,2768.7,0.691]
[1740254932842,3.61105,2769.3,2768.7,4.30272]
[1740254933031,3.833,2769.6,2768.7,1.3976051]
[1740254933893,3.61096,2769.4,2768.8,3.61166]
[1740254934172,3.61104,2769.3,2768.7,1.3976051]
[1740254934475,3.61122,2769.2,2768.7,1.3976051]
[1740254934946,3.61104,2769.3,2768.7,1.3976051]
[1740254935144,3.61116,2769.2,2768.7,1.3976051]
[1740254935445,3.61104,2769.3,2768.7,1.3976051]
[1740254936156,3.61122,2769.2,2768.7,1.3976051]
[1740254936967,3.833,2769.6,2768.8,4.30265]
[1740254936968,3.6108,2769.5,2768.8,4.30265]
[1740254937174,3.61028,2769.9,2769.3,0.691]
[1740254937376,3.61047,2769.8,2769.3,0.691]
[1740254937748,3.61028,2769.9,2769.3,4.30201]
[1740254938136,3.61044,2769.8,2769.3,0.691]
[1740254938847,3.35683433,2769.9,2769.3,0.691]
[1740254939064,3.61089,2769.4,2769.3,0.691]
[1740254939415,3.61089,2769.4,2769.1,5.531]
[1740254940078,3.61057,2769.7,2769.1,9.1422]
[1740254940371,6.96708433,2769.9,2769.2,3.61109]
[1740254940695,3.61089,2769.4,2769.1,4.84]
[1740254940834,3.35683433,2769.6,2769.1,4.84]
[1740254940835,3.61115,2769.2,2769.1,4.84]
[1740254941035,3.61193,2768.6,2768.5,7.38]
[1740254941439,3.61167,2768.8,2768.5,7.38]
[1740254941673,3.6118,2768.7,2768.5,7.38]
[1740254941835,3.61162,2768.9,2768.5,7.38]
[1740254942038,3.61169,2768.8,2768.5,7.38]
[1740254943695,7.22347,2768.8,2768.5,7.38]
[1740254943899,3.61193,2768.6,2768.5,7.38]
[1740254944358,3.61215,2768.5,2768.1,0.691]
[1740254944558,3.61193,2768.6,2768.1,0.691]
[1740254945359,3.61193,2768.6,2768.1,4.30358]
[1740254946111,0.722347,2768.7,2768.1,4.30358]
[1740254946410,3.61173,2768.8,2768.1,4.30358]
[1740254946775,3.61188,2768.7,2768.1,4.30358]
[1740254947109,3.61195,2768.6,2768.1,4.30358]
[1740254948013,3.61182,2768.7,2768.1,4.30358]
[1740254949413,3.61182,2768.7,2768.1,7.91607]
[1740254949578,3.61182,2768.7,2768.1,4.30349]
[1740254949777,3.61182,2768.7,2768.1,7.91599]
[1740254949976,3.61182,2768.7,2768.2,3.61243]
[1740254950178,3.61182,2768.7,2768.1,4.30349]
[1740254951028,3.61154,2768.9,2768.6,0.73621407]
[1740254951233,3.61188,2768.7,2768.6,0.73621407]
[1740254951836,6.96871433,2768.7,2768.6,0.73621407]
[1740254952029,3.61254,2768.2,2767.8,0.691]
[1740254952206,3.61259,2768.1,2767.8,0.691]
[1740254953336,3.61254,2768.2,2767.8,0.691]
[1740254953843,3.61284,2767.9,2767.8,0.691]
[1740254954005,3.61326,2767.6,2767.3,0.691]
[1740254954547,3.61304,2767.8,2767.3,0.691]
[1740254954743,3.61311,2767.7,2767.3,0.691]
[1740254955439,3.61299,2767.8,2767.3,0.691]
[1740254956045,3.61299,2767.8,2767.3,2.343466]
[1740254956403,3.61278,2768.0,2767.3,5.956986]
[1740254956739,3.61296,2767.9,2767.3,5.956986]
[1740254960175,3.61296,2767.9,2767.3,9.570536]
[1740254960466,13.00500433,2768.4,2767.8,0.691]
[1740254960635,4.497663,2768.3,2767.8,0.691]
[1740254960836,3.6126,2768.1,2767.8,0.691]
[1740254962879,3.61213,2768.5,2767.8,0.691]
[1740254963178,3.61213,2768.5,2767.9,3.61278]
[1740254963965,3.6122,2768.4,2767.8,4.85697]
[1740254964370,3.61213,2768.5,2767.9,3.61284]
[1740254964864,11.37645433,2768.7,2768.0,3.61259]
[1740254965071,3.61201,2768.6,2768.0,3.61259]
[1740254965830,3.61201,2768.6,2768.0,7.710879]
[1740254965993,3.61203,2768.6,2768.1,0.691]
[1740254966891,6.96868433,2768.7,2768.1,4.30352]
[1740254967189,3.61185,2768.7,2768.1,4.30352]
[1740254968094,3.61193,2768.6,2768.1,4.30352]
[1740254969296,3.61184,2768.7,2768.1,4.30352]
[1740254969606,3.61184,2768.7,2768.1,5.1436979]
[1740254970616,3.61161,2768.9,2768.3,3.61225]
[1740254971120,3.61161,2768.9,2768.4,3.61219]
[1740254974125,6.96828433,2769.0,2768.5,3.61205]
[1740254974311,6.96828433,2769.0,2768.6,0.691]
[1740254975415,10.57978433,2769.0,2768.6,0.691]
[1740254976022,3.61117,2769.2,2768.6,0.691]
[1740254976323,3.61163,2768.9,2768.6,0.691]
[1740254978256,3.6117,2768.8,2768.6,0.691]
[1740254980754,6.96825433,2769.0,2768.6,0.691]
[1740254981651,3.35683433,2769.0,2768.6,0.691]
[1740254981816,3.61129,2769.1,2768.6,0.691]
[1740254982012,12.66463,2769.6,2768.6,1.121295]
[1740254982013,3.61093,2769.4,2768.6,1.121295]
[1740254982246,3.61093,2769.4,2769.0,0.691]
[1740254983366,3.61103,2769.3,2769.0,0.691]
[1740254983726,3.61098,2769.4,2769.0,0.691]
[1740254984733,3.61104,2769.3,2769.0,0.691]
[1740254986027,7.22217,2769.3,2769.0,0.691]
[1740254986657,3.61135,2769.1,2768.8,0.691]
[1740254987027,3.61108,2769.3,2768.8,0.691]
[1740254987739,3.6112,2769.2,2768.8,0.691]
[1740254987923,3.61108,2769.3,2768.8,0.691]
[1740254988128,7.22219,2769.3,2768.8,0.691]
[1740254988432,3.61115,2769.2,2768.8,0.691]
[1740254990374,3.35683433,2769.1,2768.8,0.691]
[1740254990669,3.61178,2768.8,2768.6,0.691]
[1740254991375,3.61157,2768.9,2768.6,0.691]
[1740254991887,6.96817433,2769.1,2768.6,0.691]
[1740254992093,3.6111,2769.3,2768.6,4.30292]
[1740254992272,3.61103,2769.3,2768.7,3.6117]
[1740254993682,4.16193433,2769.7,2768.9,3.61146]
[1740254993888,3.61076,2769.5,2769.0,3.6114]
[1740254994058,3.61076,2769.5,2768.9,3.61146]
[1740254994394,7.22162,2769.5,2768.9,3.61146]
[1740254994584,3.61076,2769.5,2769.0,3.61136]
[1740254994771,3.61076,2769.5,2769.0,0.691]
[1740254995151,3.35683433,2769.4,2769.0,0.691]
[1740254995351,3.61123,2769.2,2768.6,3.61193]
[1740254995578,3.6111,2769.3,2768.7,3.61179]
[1740254995765,3.6111,2769.3,2768.8,4.30267]
[1740254995994,7.22222,2769.3,2768.8,0.691]
[1740254996189,3.6111,2769.3,2768.8,0.691]
[1740254997776,3.35683433,2769.4,2768.8,5.094029]
[1740254997977,3.35683433,2769.4,2768.9,3.61153]
[1740254998981,6.96773433,2769.4,2768.9,3.61153]
[1740255000039,6.96773433,2769.4,2768.8,1.482439]
[1740255000527,6.96773433,2769.4,2768.9,3.61152]
[1740255000728,3.61104,2769.3,2768.8,0.691]
[1740255000925,3.61119,2769.2,2768.8,0.691]
[1740255001918,10.57875433,2769.4,2768.9,3.61153]
[1740255002121,3.61102,2769.3,2768.8,0.691]
[1740255002695,7.22214,2769.3,2768.8,0.691]
[1740255002993,3.61123,2769.2,2768.8,0.691]
[1740255003466,3.61102,2769.3,2768.8,0.691]
[1740255003619,3.61062,2769.6,2768.8,4.3026]
[1740255003825,3.61091,2769.4,2768.8,4.3026]
[1740255004032,3.61104,2769.3,2768.8,4.3026]
[1740255005733,3.61091,2769.4,2768.8,4.3026]
[1740255008207,7.2219,2769.4,2768.8,4.3026]
[1740255008744,3.61091,2769.4,2768.8,4.3026]
[1740255009653,3.35683433,2769.7,2769.2,0.691]
[1740255009850,2.54601288,2769.8,2769.2,0.691]
[1740255010754,2.54601288,2769.8,2769.5,3.61068]
[1740255010909,7.06701433,2770.0,2769.6,0.691]
[1740255011646,7.06702433,2770.0,2769.6,0.691]
[1740255012644,3.61045,2769.8,2769.6,0.691]
[1740255012847,3.35683433,2769.7,2769.2,0.691]
[1740255013001,3.61114,2769.3,2769.1,4.84]
[1740255013406,3.61115,2769.2,2769.1,4.84]
[1740255013644,3.61141,2769.0,2768.9,0.691]
[1740255014822,3.61129,2769.1,2768.9,0.691]
[1740255015664,3.61103,2769.3,2768.9,0.691]
[1740255016765,0.7688,2769.2,2768.7,0.691]
[1740255016955,3.61157,2768.9,2768.7,0.691]
[1740255017150,3.61167,2768.8,2768.5,0.691]
[1740255017467,3.61167,2768.8,2768.4,7.378]
[1740255017828,7.22344,2768.8,2768.4,7.378]
[1740255018024,3.61198,2768.6,2768.4,7.378]
[1740255018352,3.61167,2768.8,2768.3,0.691]
[1740255018535,7.22344,2768.8,2768.3,0.691]
[1740255018870,3.61167,2768.8,2768.3,0.691]
[1740255019071,3.61167,2768.8,2768.3,4.30331]
[1740255019363,3.61145,2769.0,2768.3,5.20480779]
[1740255019568,4.37999,2769.2,2768.7,3.61176]
[1740255019773,3.61119,2769.2,2768.8,0.691]
[1740255020772,3.61128,2769.1,2768.6,0.691]
[1740255020940,7.73656433,2769.4,2768.6,0.691]
[1740255021164,3.61128,2769.1,2768.6,0.691]
[1740255021499,0.792,2769.0,2768.5,3.61201]
[1740255021694,4.40345,2769.0,2768.5,1.36567578]
[1740255022665,3.35683433,2769.1,2768.5,4.97770578]
[1740255023371,6.96819433,2769.1,2768.5,4.97770578]
[1740255024069,3.61149,2769.0,2768.5,1.36567578]
[1740255024782,7.22299,2769.0,2768.5,1.36567578]
[1740255024982,3.61149,2769.0,2768.5,1.36567578]
[1740255025694,7.22302,2769.0,2768.5,1.36567578]
[1740255026128,3.61149,2769.0,2768.5,1.36567578]
[1740255026341,3.61169,2768.8,2768.4,5.531]
[1740255030240,3.61149,2769.0,2768.4,9.14308]
[1740255030751,3.61149,2769.0,2768.5,3.61203]
[1740255031938,3.61149,2769.0,2768.4,9.14315]
[1740255032235,3.61149,2769.0,2768.4,10.53475178]
[1740255032414,3.61149,2769.0,2768.4,14.14690178]
[1740255032615,3.61107,2769.3,2768.6,3.61184]
[1740255032841,3.61107,2769.3,2768.7,3.61171]
[1740255033140,7.78909433,2769.4,2768.6,3.61184]
[1740255033141,3.61122,2769.2,2768.6,3.61184]
[1740255033324,3.61122,2769.2,2768.7,3.6118]
[1740255034441,6.96779433,2769.4,2768.8,4.30258]
[1740255034673,3.61111,2769.3,2768.8,0.691]
[1740255034862,3.35683433,2769.4,2768.8,0.691]
[1740255035040,3.61129,2769.1,2768.8,0.691]
[1740255035553,6.96779433,2769.4,2768.8,0.691]
[1740255035754,3.61119,2769.2,2768.8,0.691]
[1740255036828,3.61128,2769.1,2768.8,0.691]
[1740255038265,7.74675376,2769.4,2768.8,0.691]
[1740255038764,3.61115,2769.2,2768.8,0.691]
[1740255040524,3.61122,2769.2,2768.8,0.691]
[1740255041302,3.61115,2769.2,2768.8,0.691]
[1740255042504,4.13574376,2769.4,2768.8,0.691]
[1740255042804,3.61104,2769.3,2768.8,0.691]
[1740255044924,4.13574376,2769.4,2768.8,0.691]
[1740255045071,7.74663376,2769.4,2768.8,4.30257]
[1740255046117,3.35683433,2769.7,2769.2,3.6111]
[1740255046347,3.35683433,2769.7,2769.3,0.691]
[1740255046936,6.96741433,2769.7,2769.3,0.691]
[1740255047325,10.57801433,2769.7,2769.3,0.691]
[1740255047521,6.96741433,2769.7,2769.3,0.691]
[1740255048226,3.61071,2769.6,2769.3,0.691]
[1740255050162,8.10731576,2769.7,2769.3,0.691]
[1740255051242,8.10731576,2769.7,2769.0,4.30239]
[1740255051539,3.61066,2769.6,2769.0,4.30239]
[1740255051919,3.61066,2769.6,2769.0,7.91372]
[1740255052105,3.61066,2769.6,2769.0,5.093702]
[1740255055450,3.35683433,2769.4,2769.0,4.30233]
[1740255056366,3.35683433,2769.4,2769.0,0.691]
[1740255056667,3.35683433,2769.1,2768.8,0.691]
[1740255056971,3.61141,2769.0,2768.7,4.84]
[1740255057178,3.35683433,2768.8,2768.7,4.84]
[1740255057331,3.35683433,2768.8,2768.6,0.691]
[1740255061094,3.35683433,2768.8,2768.3,0.691]
[1740255061395,6.96890433,2768.5,2768.3,0.691]
[1740255061594,6.96890433,2768.5,2768.2,12.218]
[1740255061756,3.61232,2768.3,2768.2,12.218]
[1740255061962,3.61232,2768.3,2768.2,7.378]
[1740255064286,7.22448,2768.4,2768.2,7.378]
[1740255064661,3.61219,2768.4,2768.2,7.378]
[1740255065973,3.61232,2768.3,2768.2,7.378]
[1740255066149,3.61219,2768.4,2768.2,7.378]
[1740255066351,3.61232,2768.3,2767.8,0.691]
[1740255066578,3.61258,2768.1,2767.8,0.691]
[1740255066775,3.61318,2767.7,2767.5,0.691]
[1740255066950,6.97015433,2767.6,2767.2,0.691]
[1740255067647,3.61337,2767.5,2767.2,0.691]
[1740255067847,6.97050433,2767.3,2767.1,7.379]
[1740255068073,3.61376,2767.2,2767.1,7.379]
[1740255068452,6.97050433,2767.3,2767.1,7.379]
[1740255068870,3.61376,2767.2,2767.1,7.379]
[1740255069590,6.97050433,2767.3,2767.1,7.379]
[1740255070389,3.35683433,2767.3,2767.1,7.379]
[1740255071091,3.35683433,2767.6,2767.1,12.4217]
[1740255071255,3.35683433,2767.6,2767.3,3.61359]
[1740255071454,3.35683433,2767.6,2767.1,16.0355]
[1740255071652,3.35683433,2767.6,2767.1,12.4217]
[1740255076399,3.35683433,2767.6,2767.2,3.61373]
[1740255076907,3.35683433,2767.6,2767.2,4.9977992]
[1740255077476,3.35683433,2767.9,2767.2,1.3840692]
[1740255077807,8.59683433,2768.2,2767.8,3.61297]
[1740255078307,8.59683433,2768.2,2767.6,7.91728]
[1740255078490,8.59683433,2768.2,2767.7,3.6131]
[1740255078901,8.59683433,2768.2,2767.7,3.61303]
[1740255079705,8.59683433,2768.2,2767.6,0.691]
[1740255079910,3.35683433,2767.9,2767.4,0.691]
[1740255080514,3.35683433,2767.9,2767.4,4.30449]
[1740255081003,0.8182,2768.0,2767.4,4.30449]
[1740255081214,6.96971433,2767.9,2767.3,3.61354]
[1740255081403,3.35683433,2767.9,2767.3,3.61354]
[1740255081716,3.35683433,2767.9,2767.3,8.99492392]
[1740255081885,3.35683433,2767.9,2767.3,5.38137392]
[1740255082984,3.35683433,2767.9,2767.4,3.61346]
[1740255084520,3.35683433,2767.9,2767.5,3.61336]
[1740255084681,4.17503433,2768.2,2767.8,3.61296]
[1740255085013,4.17503433,2768.2,2767.6,7.91734]
[1740255085176,4.17503433,2768.2,2767.6,7.91726]
[1740255085590,4.17503433,2768.2,2767.7,3.61308]
[1740255086419,4.95377176,2768.2,2767.6,4.30419]
[1740255086620,4.95377176,2768.2,2767.6,7.91738]
[1740255086780,4.17503433,2768.2,2767.7,3.61303]
[1740255087616,4.17503433,2768.2,2767.8,3.61292]
[1740255087920,3.35683433,2768.2,2768.0,3.61259]
[1740255090996,3.35683433,2768.5,2768.3,3.61231]
[1740255092923,3.35683433,2768.5,2768.4,3.61219]
[1740255093238,3.35683433,2768.5,2768.1,7.91605]
[1740255093436,3.35683433,2768.5,2768.2,3.61242]
[1740255094234,3.77423776,2768.5,2767.9,0.691]
[1740255094402,3.35683433,2768.2,2767.8,4.84]
[1740255095934,3.35683433,2768.2,2767.8,8.45288]
[1740255096840,3.35683433,2768.2,2767.8,3.61288]
[1740255097338,3.35683433,2768.2,2767.9,3.61279]
[1740255097750,3.35683433,2768.2,2767.9,3.61276]
[1740255098548,3.35683433,2768.2,2767.9,3.61275]
[1740255098749,3.35683433,2768.5,2768.4,3.61219]
[1740255099250,3.35683433,2768.5,2768.2,3.61237]
[1740255099752,3.35683433,2768.5,2768.1,3.61256]
[1740255103364,0.7788,2768.1,2767.7,8.45301]
[1740255103522,0.7788,2768.1,2767.7,3.61301]
[1740255105068,0.7788,2768.1,2767.7,7.22603]
[1740255106373,0.7788,2768.1,2767.8,3.61293]
[1740255106876,0.7788,2768.1,2767.9,3.61284]
[1740255108643,4.11163433,2768.5,2768.2,3.61233]
[1740255109034,4.11163433,2768.5,2768.4,3.61219]
[1740255109532,4.11163433,2768.5,2768.2,7.22468]
[1740255110577,4.11163433,2768.5,2768.3,3.61228]
[1740255111573,4.11163433,2768.5,2768.4,3.61219]
[1740255111574,3.35683433,2768.5,2768.4,3.61219]
[1740255116340,3.35683433,2768.5,2768.3,3.61232]
[1740255116454,3.35683433,2768.5,2768.3,3.61224]
[1740255118102,3.35683433,2768.5,2768.1,3.61251]
[1740255118265,3.35683433,2768.2,2768.0,8.45271]
[1740255119390,0.7522,2768.4,2768.0,8.45271]
[1740255119581,0.7522,2768.4,2768.2,3.6124]
[1740255120753,3.35683433,2768.5,2768.2,3.6124]
[1740255120950,4.12273433,2768.8,2768.5,3.61206]
[1740255123907,4.12273433,2768.8,2768.5,7.22404]
[1740255124370,3.35683433,2768.8,2768.5,7.22404]
[1740255124948,3.35683433,2768.8,2768.5,3.61198]
[1740255125117,3.35683433,2768.8,2768.6,3.61181]
[1740255125518,3.35683433,2768.8,2768.7,3.6118]
[1740255125719,3.35683433,2769.1,2768.6,0.691]
[1740255126138,3.35683433,2769.1,2768.8,3.61154]
[1740255126508,3.35683433,2769.1,2768.9,3.61151]
[1740255126955,3.35683433,2769.1,2768.8,3.61154]
[1740255127859,3.35683433,2769.1,2768.8,7.22311]
[1740255128009,3.35683433,2769.1,2768.8,3.61154]
[1740255128304,3.35683433,2769.1,2768.8,7.22312]
[1740255128910,3.35683433,2769.1,2768.8,3.61154]
[1740255129215,3.35683433,2769.1,2768.8,4.067694]
[1740255129843,3.35683433,2769.1,2768.9,3.61152]
[1740255130315,3.35683433,2769.1,2768.8,4.067694]
[1740255130545,3.35683433,2769.1,2768.8,7.679284]
[1740255130728,3.35683433,2769.1,2768.9,3.61153]
[1740255130929,3.35683433,2769.1,2768.9,4.3794524]
[1740255131571,3.35683433,2769.1,2768.9,0.7679224]
[1740255132898,3.35683433,2769.1,2768.8,7.22312]
[1740255133200,3.35683433,2769.1,2768.8,3.61154]
[1740255133396,3.35683433,2769.1,2768.9,3.61146]
[1740255133783,0.7523,2769.3,2768.9,3.61146]
[1740255134802,3.35683433,2769.4,2769.0,3.61139]
[1740255135008,3.35683433,2769.4,2769.0,0.791393]
[1740255136266,3.35683433,2769.4,2769.0,3.61128]
[1740255136984,3.35683433,2769.4,2769.0,7.2226]
[1740255137584,3.35683433,2769.4,2769.1,3.61127]
[1740255138516,3.35683433,2769.4,2768.9,0.691]
[1740255138715,3.35683433,2769.4,2768.9,4.30241]
[1740255138917,3.35683433,2769.4,2769.0,0.430241]
[1740255139139,6.96775433,2769.4,2769.0,0.430241]
[1740255139589,3.61109,2769.3,2769.0,0.430241]
[1740255139787,7.22223,2769.3,2768.9,0.259]
[1740255140084,3.35683433,2769.1,2768.6,0.691]
[1740255140289,3.61193,2768.6,2768.2,0.72557155]
[1740255141593,7.75901433,2768.8,2768.2,4.33791155]
[1740255141793,7.75901433,2768.8,2768.3,1.34813916]
[1740255142914,7.75901433,2768.8,2768.3,0.59813916]
[1740255143538,3.61189,2768.7,2768.3,0.59813916]
[1740255143738,3.61207,2768.5,2768.2,0.72557155]
[1740255143949,6.96890433,2768.5,2768.2,0.72557155]
[1740255144436,3.35683433,2768.5,2768.2,0.72557155]
[1740255148303,3.35683433,2768.5,2768.1,12.75601]
[1740255148458,3.35683433,2768.5,2768.1,9.1435]
[1740255149109,3.35683433,2768.5,2768.1,5.531]
[1740255152106,3.35683433,2768.5,2768.1,9.14353]
[1740255152405,3.35683433,2768.5,2768.1,10.44506]
[1740255152590,3.35683433,2768.5,2768.1,9.14353]
[1740255152979,3.35683433,2768.5,2768.1,5.531]
[1740255156306,3.35683433,2768.5,2768.1,9.14358]
[1740255158187,3.35683433,2768.5,2768.1,5.531]
[1740255162446,3.35683433,2768.5,2768.1,9.14356]
[1740255162637,3.35683433,2768.5,2768.2,3.61244]
[1740255163365,3.35683433,2768.5,2768.2,3.61245]
[1740255163566,3.35683433,2769.1,2768.2,0.691]
[1740255163767,3.35683433,2769.1,2768.7,3.61169]
[1740255164075,3.35683433,2769.4,2769.2,3.61115]
[1740255164565,3.35683433,2769.4,2769.1,3.61116]
[1740255165559,3.35683433,2769.4,2768.9,7.22292]
[1740255165762,3.35683433,2769.4,2768.9,3.61144]
[1740255165931,3.35683433,2769.4,2768.9,7.2229]
[1740255166325,3.35683433,2769.4,2768.9,3.61144]
[1740255166769,3.35683433,2769.4,2768.9,4.402859]
[1740255166940,3.35683433,2769.4,2769.0,3.61129]
[1740255167330,3.35683433,2769.4,2768.9,0.791419]
[1740255167550,3.35683433,2769.4,2768.9,4.402949]
[1740255167761,3.35683433,2769.4,2768.9,8.014479]
[1740255167945,3.35683433,2769.4,2769.0,3.61139]
[1740255169164,3.35683433,2769.4,2768.9,4.402949]
[1740255169362,3.35683433,2769.4,2769.2,3.61113]
[1740255169864,3.35683433,2769.4,2769.1,3.61118]
[1740255172152,3.35683433,2769.4,2768.9,4.402909]
[1740255172352,3.35683433,2769.4,2769.0,3.61141]
[1740255173474,3.35683433,2769.4,2768.9,7.22295]
[1740255173680,3.35683433,2769.4,2769.0,3.61141]
[1740255177202,3.35683433,2769.4,2769.1,3.61125]
[1740255177372,3.35683433,2769.4,2769.1,3.61119]
[1740255177577,3.35683433,2769.4,2769.1,7.22238]
[1740255177906,3.35683433,2769.4,2769.2,3.61113]
[1740255179107,3.35683433,2769.4,2769.3,3.61102]
[1740255180661,3.35683433,2769.4,2769.2,4.30213]
[1740255181198,3.35683433,2769.4,2768.8,3.61156]
[1740255181199,0.7653,2769.3,2768.8,3.61156]
[1740255181498,3.35683433,2769.1,2768.7,4.84]
[1740255182300,3.35683433,2769.1,2768.7,8.4517]
[1740255182598,3.35683433,2769.1,2769.0,3.61141]
[1740255182910,3.35683433,2769.1,2768.9,3.61152]
[1740255184004,3.35683433,2769.1,2768.9,7.22304]
[1740255184301,3.35683433,2769.1,2768.9,3.61152]
[1740255184490,3.35683433,2769.1,2768.9,7.22297]
[1740255184672,3.35683433,2769.1,2768.9,3.61145]
[1740255184877,3.35683433,2769.1,2769.0,3.61141]
[1740255185091,3.35683433,2769.1,2768.9,7.22292]
[1740255185264,3.35683433,2769.1,2768.9,3.61145]
[1740255185465,3.35683433,2769.1,2769.0,3.61141]
[1740255185707,3.35683433,2769.4,2769.2,7.22215]
[1740255185884,3.35683433,2769.4,2769.3,3.61102]
[1740255186083,3.35683433,2769.4,2769.2,3.61104]
[1740255186284,3.35683433,2769.4,2769.0,3.61135]
[1740255186494,3.35683433,2769.4,2769.0,7.22268]
[1740255186705,3.35683433,2769.4,2769.0,3.61133]
[1740255187021,3.35683433,2769.1,2768.8,3.61162]
[1740255187486,3.35683433,2769.1,2768.8,3.61159]
[1740255188378,3.35683433,2769.1,2768.7,0.95]
[1740255188594,3.35683433,2769.1,2768.7,4.56176]
[1740255188819,3.35683433,2769.1,2768.7,3.87076]
[1740255189128,3.35683433,2769.1,2768.7,3.87073]
[1740255190907,3.35683433,2769.1,2768.7,3.61173]
[1740255191865,3.35683433,2769.1,2768.6,3.61191]
[1740255192455,3.35683433,2769.1,2768.6,3.61185]
[1740255192863,6.96812433,2769.1,2768.5,5.531]
[1740255193019,3.35683433,2768.8,2768.5,8.45205]
[1740255193759,3.35683433,2768.8,2768.2,11.24937]
[1740255193760,0.7918,2768.7,2768.2,11.24937]
[1740255193923,3.35683433,2768.5,2768.2,11.24937]
[1740255194125,3.35683433,2768.5,2768.2,16.08937]
[1740255194767,3.35683433,2768.5,2768.2,16.08936]
[1740255194950,3.35683433,2768.5,2768.2,13.96725762]
[1740255195151,0.7918,2768.7,2768.3,3.61232]
[1740255195354,0.7918,2768.7,2768.5,3.61205]
[1740255197783,0.7918,2768.7,2768.3,3.61224]
[1740255198085,0.7918,2768.7,2768.3,7.22448]
[1740255198269,0.7918,2768.7,2768.4,3.61217]
[1740255201491,0.7918,2768.7,2768.5,3.61205]
[1740255201699,0.7918,2768.7,2768.5,3.61198]
[1740255202369,0.7918,2768.7,2768.3,3.61226]
[1740255202572,0.7918,2768.7,2768.4,3.61217]
[1740255205949,0.7918,2768.7,2768.5,3.61204]
[1740255206587,1.63108091,2768.6,2768.5,3.61204]
[1740255206880,1.63108091,2768.6,2768.4,3.61216]
[1740255211713,1.63108091,2768.6,2768.5,3.61206]
[1740255213270,1.63108091,2768.8,2768.7,3.6118]
[1740255214299,1.63108091,2768.8,2768.6,3.61193]
[1740255214816,1.63108091,2768.8,2768.6,7.22377]
[1740255215307,1.63108091,2768.8,2768.7,3.6118]
[1740255215811,1.63108091,2769.0,2768.7,4.334164]
[1740255216008,1.63108091,2768.8,2768.7,3.6117]
[1740255219590,1.63108091,2769.0,2768.9,3.61154]
[1740255223127,0.7852,2768.9,2768.7,3.61174]
[1740255223429,1.63108091,2768.7,2768.5,4.84]
[1740255224829,3.36434237,2768.8,2768.4,3.61212]
[1740255228636,0.8138,2768.7,2768.3,3.61225]
[1740255229349,0.8138,2768.7,2768.2,3.61237]
[1740255230004,0.8138,2768.7,2768.3,3.61232]
[1740255232459,0.8138,2768.7,2768.2,3.61237]
[1740255232918,0.8138,2768.7,2768.2,7.22475]
[1740255233330,0.8138,2768.7,2768.2,3.61237]
[1740255233925,0.8138,2768.7,2768.2,3.61235]
[1740255234234,0.8138,2768.7,2768.3,3.61232]
[1740255234436,0.8138,2768.7,2768.2,3.61235]
[1740255236666,0.8138,2768.7,2768.2,7.2247]
[1740255237524,0.8138,2768.7,2768.3,3.61228]
[1740255241263,0.8138,2768.7,2768.1,12.06505]
[1740255241459,3.36434237,2768.5,2768.1,4.84]
[1740255241864,0.7648,2768.4,2768.1,4.84]
[1740255242474,4.377,2768.4,2768.1,4.84]
[1740255242673,0.7648,2768.3,2767.8,10.9909]
[1740255244678,1.6317327,2768.1,2767.8,3.6129]
[1740255245379,1.6317327,2768.1,2767.9,3.61283]
[1740255247037,1.6317327,2768.1,2767.9,3.61275]
[1740255247278,1.6317327,2768.1,2768.0,3.61271]
[1740255247586,2.3965327,2768.3,2768.1,3.61258]
[1740255248483,0.7648,2768.3,2768.2,3.61245]
[1740255248680,2.3878327,2768.5,2768.2,3.61245]
[1740255249382,2.3878327,2768.5,2768.3,3.61228]
[1740255255783,1.6317327,2768.5,2768.3,7.22456]
[1740255255987,1.6317327,2768.5,2768.4,3.61219]
[1740255256177,1.6317327,2768.5,2768.3,3.61228]
[1740255264300,1.6317327,2768.5,2768.3,3.61224]
[1740255265280,1.6317327,2768.5,2768.3,3.61223]